[Event "US Masters 2022"]
[Site "Charlotte"]
[Date "2022.11.27"]
[Round "7.19"]
[White "Rodriguez Garcia, Victor"]
[Black "Budisavljevic, Luka"]
[Result "0-1"]
[ECO "B43"]
[WhiteElo "2350"]
[BlackElo "2505"]
[Annotator "TA"]
[PlyCount "84"]
[EventDate "2022.11.23"]
[EventType "swiss"]
[EventCountry "USA"]
[SourceTitle "playchess.com"]
[Source "ChessBase"]
[SourceQuality "1"]
[TimeControl "5400+30"]

{[%evp 16,84,38,19,22,20,39,39,31,41,51,25,41,27,29,27,56,46,85,2,12,6,0,14,16,0,0,0,0,0,0,0,0,-22,-12,-34,-27,-31,-27,-27,-27,-28,0,-10,0,0,0,0,0,0,0,0,0,0,0,-10,0,-449,-460,-439,-418,-950,-933,-896,-887,-1582,-964,-29988,-29989,-29989,-29988]} 1. e4 {[%emt 0:00:30]} c5 {[%emt 0:08:00]} 2. Nf3 {[%emt 0:00:00]} e6 {[%emt 0:00:16]} 3. Nc3 {[%emt 0:00:00]} a6 {[%emt 0:00:05]} 4. d4 {[%emt 0:00:09]} cxd4 {[%emt 0:00:05]} 5. Nxd4 {[%emt 0:00:05]} b5 {[%emt 0:00:04]} 6. Bd3 {[%emt 0:01:58]} Qb6 {[%emt 0:00:06]} 7. Nb3 {[%emt 0:00:39]} Qc7 {[%emt 0:00:09]} 8. O-O {[%emt 0:02:29]} Bb7 {[%emt 0:00:03]} 9. Qe2 {[%emt 0:01:15]} b4 {[%emt 0:00:06] B43: Sicilian: Kan Variation: 5 Nc3.} 10. Nd1 {[%emt 0:02:12]} Nf6 {[%emt 0:00:15]} 11. f4 {[%emt 0:04:20]} a5 {[%emt 0:00:08] White is slightly better.} 12. e5 {[%emt 0:03:13] Against a4} Nd5 {[%emt 0:00:18]} 13. Ne3 {[%emt 0:01:53]} Be7 {[%emt 0:08:48]} 14. Nxd5 {[%emt 0:03:21]} Bxd5 {[%emt 0:00:07]} 15. Be3 {[%emt 0:02:26][%cal Oc2c3]} Nc6 {[%emt 0:01:30] [#]} 16. Nd2 $146 {[%emt 0:06:48]} ({Predecessor:} 16. Nd4 Nxd4 17. Bxd4 Rc8 18. b3 O-O 19. Kh1 f5 20. exf6 Bxf6 21. Qh5 h6 22. Be5 {0-1 (60) Frisk,E (2126)-Bazeev,G (2334) Stockholm 2011}) 16... f5 {[%emt 0:15:14] [#]} 17. exf6 {[%emt 0:22:37]} (17. Bc4 $1 $16) 17... Bxf6 $11 {[%emt 0:00:13]} 18. c4 {[%emt 0:00:56]} bxc3 {[%emt 0:00:40]} 19. bxc3 {[%emt 0:00:16][%cal Oc3c4] aiming for c4!} Ne7 {[%emt 0:09:11] Against c4} 20. Rac1 {[%emt 0:08:27]} O-O {[%emt 0:02:25][%cal Bh8f8,Bf8f6,Bf6e6][%mdl 32]} 21. c4 {[%emt 0:07:40]} (21. Qh5 g6 22. Qe2 Nf5 $15) 21... Bc6 {[%emt 0:00:14]} 22. Ne4 {[%emt 0:03:16]} ({Of course not} 22. Qh5 Nf5 23. Bxf5 exf5 $15) 22... Nf5 {[%emt 0:00:21]} 23. Nxf6+ {[%emt 0:00:29]} (23. g3 {is more complex.} Be7 24. Bf2 Rab8 25. Rfe1) 23... Rxf6 {[%emt 0:00:05]} 24. Bxf5 {[%emt 0:03:02]} exf5 {[%emt 0:00:22]} 25. Bd4 {[%emt 0:01:25]} Re6 {[%emt 0:04:00]} 26. Qd2 {[%emt 0:03:17]} Rg6 {[%emt 0:00:16]} 27. Rf2 {[%emt 0:00:04]} Be4 {[%emt 0:03:55]} 28. c5 {[%emt 0:01:47]} Qb7 {[%emt 0:01:57]} 29. Be5 {[%emt 0:00:41]} Rc8 {[%emt 0:03:32]} 30. h3 {[%emt 0:03:00]} h6 {[%emt 0:00:50]} 31. Kh2 {[%emt 0:00:13]} a4 {[%emt 0:08:13]} 32. Rc3 {[%emt 0:00:13]} Kh7 {[%emt 0:01:21]} 33. Bd6 {[%emt 0:02:05]} Re8 {[%emt 0:01:14]} 34. Be5 {[%emt 0:03:02]} Ree6 {[%emt 0:01:39]} 35. Rc1 {[%emt 0:00:49]} Qb5 {[%emt 0:01:00]} 36. Bd6 $2 {[%emt 0:00:40][%mdl 8192] [#]} (36. Qd4 $11 {and White is okay.}) 36... Bxg2 $1 $19 {[%emt 0:02:24][%mdl 512]} 37. Be5 {[%emt 0:04:34]} ({Don't play} 37. Rxg2 Rxg2+ 38. Qxg2 Re2 $19) (37. Bc7 Bb7) 37... Ba8 {[%emt 0:04:04]} 38. Qd4 {[%emt 0:00:36]} (38. Qe2 $142 Qc6 39. Qc2) 38... Qc6 {[%emt 0:01:00]} 39. Qd2 {[%emt 0:00:24]} h5 {[%emt 0:01:35] Hoping for ...h4.} 40. Qc2 {[%emt 0:01:20]} Kh6 {[%emt 0:00:28] ( -> ...h4)} 41. h4 {[%emt 0:06:22]} Rg4 {[%emt 0:00:10]} 42. Qxf5 {[%emt 0:01:03]} Reg6 {[%emt 0:00:23] Weighted Error Value: White=0.77/Black=0.26 (precise)} 0-1

[Event "US Masters 2022"]
[Site "Charlotte"]
[Date "2022.11.27"]
[Round "7.20"]
[White "Plotkin, Mark"]
[Black "Nagy, Gabor"]
[Result "1/2-1/2"]
[ECO "B43"]
[WhiteElo "2361"]
[BlackElo "2482"]
[Annotator "TA"]
[PlyCount "155"]
[EventDate "2022.11.23"]
[EventType "swiss"]
[EventCountry "USA"]
[SourceTitle "playchess.com"]
[Source "ChessBase"]
[SourceQuality "1"]
[TimeControl "5400+30"]

{[%evp 13,155,40,40,20,16,12,50,49,48,35,96,86,96,42,41,29,27,32,33,31,32,44,55,55,60,55,64,55,66,62,62,1,10,10,16,0,0,0,12,-8,22,23,26,43,26,15,0,-45,-22,-29,-9,-7,0,0,78,-19,-17,-64,-48,-97,-103,-150,-118,-126,-124,-214,-183,-189,-188,-214,-113,-108,-120,-120,-120,-95,-99,-243,-243,-228,-53,-75,-84,-86,-29,-33,-27,-31,-8,-8,-8,-8,-12,-8,0,-18,-18,-19,0,0,0,0,8,0,0,0,0,0,0,0,0,-172,64,51,115,73,72,73,72,56,665,664,664,650,647,625,710,706,714,714,600,424,424,346,989,974,169,8,8,8,8,8,8,8]} 1. e4 {[%emt 0:00:02]} c5 {[%emt 0:02:51]} 2. Nf3 {[%emt 0:00:05]} e6 {[%emt 0:00:10]} 3. d4 {[%emt 0:00:04]} cxd4 {[%emt 0:00:07]} 4. Nxd4 {[%emt 0:00:05]} a6 {[%emt 0:00:08]} 5. Nc3 {[%emt 0:00:13]} b5 {[%emt 0:00:25]} 6. Bd3 {[%emt 0:07:30]} Qb6 {[%emt 0:00:47]} 7. Nb3 {[%emt 0:00:18]} Qc7 {[%emt 0:00:08]} 8. Qg4 {[%emt 0:05:06] B43: Sicilian: Kan Variation: 5 Nc3.} Nf6 {[%emt 0:00:38]} 9. Qg3 {[%emt 0:00:07]} Qxg3 {[%emt 0:00:30]} 10. hxg3 {[%emt 0:00:03] White is slightly better.} (10. fxg3 Nc6 $11) 10... Nc6 {[%emt 0:00:16]} 11. f3 {[%emt 0:03:07] [#]} Rg8 $146 {[%emt 0:01:10]} (11... Ne5 $14) ({Predecessor:} 11... d6 12. g4 Bb7 13. Bd2 Nd7 14. a4 b4 15. Na2 d5 16. exd5 exd5 17. O-O-O Be7 {½-½ (66) Ramon Perez,J (2256)-Ramiro Ovejero,J (2386) Aragon 2017}) 12. g4 $16 {[%emt 0:01:05]} h6 {[%emt 0:01:05]} 13. g5 {[%emt 0:03:21]} (13. Bf4 $16) 13... hxg5 $14 {[%emt 0:00:17]} 14. Bxg5 {[%emt 0:00:03]} Bb7 {[%emt 0:00:25]} 15. O-O-O {[%emt 0:04:25]} Be7 {[%emt 0:02:56]} 16. Rhe1 {[%emt 0:07:44]} d6 {[%emt 0:03:06]} 17. a4 {[%emt 0:01:08]} bxa4 {[%emt 0:00:45]} 18. Nxa4 {[%emt 0:00:05]} Nd7 {[%emt 0:00:17]} 19. Be3 {[%emt 0:01:20]} Rc8 {[%emt 0:01:08]} 20. Kb1 {[%emt 0:04:11]} g5 {[%emt 0:01:55]} 21. Be2 {[%emt 0:01:38]} g4 {[%emt 0:05:16]} 22. f4 {[%emt 0:06:51] White has more active pieces.} (22. fxg4 $6 Nce5 $11) (22. Nc3 $14) 22... Nb4 $11 {[%emt 0:00:35][%csl LRc2,LRe4]} 23. Nc3 {[%emt 0:00:17]} Nf6 $1 {[%emt 0:00:41]} 24. Rd4 {[%emt 0:08:20]} d5 $1 {[%emt 0:00:52]} 25. e5 {[%emt 0:00:10]} Nh5 {[%emt 0:00:55]} 26. Bf2 {[%emt 0:05:33]} g3 {[%emt 0:04:05]} (26... Nc6 $5 {[%cal Rc6d4]} 27. Ra4 d4 $11) 27. Be3 {[%emt 0:01:01]} Ng7 {[%emt 0:00:24]} 28. Bg4 $36 {[%emt 0:01:19][%mdl 2048] White is more active.} Rh8 {[%emt 0:00:35] Inhibits Rh1.} 29. Rd2 {[%emt 0:02:22]} Nc6 {[%emt 0:05:23]} 30. Na4 {[%emt 0:08:28]} Rh4 {[%emt 0:01:17]} 31. Bh3 $1 {[%emt 0:03:59] Prevents d4.} (31. Nac5 Rxg4 32. Nxb7 Nf5 $17) 31... Rb8 {[%emt 0:03:11]} 32. Nac5 {[%emt 0:04:26]} d4 {[%emt 0:06:02]} 33. Bxd4 {[%emt 0:02:34]} Rxf4 {[%emt 0:01:06]} (33... Nh5 $11 {remains equal.}) 34. Nxb7 {[%emt 0:01:44]} ({White should play} 34. Be3 $16 Rh4 35. Nd7 (35. Rd7 Ba8 $11)) 34... Rxb7 {[%emt 0:00:31]} 35. Bc5 {[%emt 0:01:24]} (35. Bc3 $11 {is superior.}) 35... Rb5 $15 {[%emt 0:02:22]} 36. Bxe7 {[%emt 0:00:40]} (36. Bd6 $15) 36... Kxe7 $17 {[%emt 0:00:24]} 37. Rd6 {[%emt 0:00:51]} (37. Nc1 $142) 37... Rxe5 {[%emt 0:00:33]} 38. Red1 {[%emt 0:03:33]} Nb4 {[%emt 0:56:14]} 39. Rb6 {[%emt 0:03:09]} (39. Nc1 $17) 39... Rd5 {[%emt 0:00:00]} 40. Rb7+ {[%emt 0:06:07]} Kf6 {[%emt 0:00:00]} 41. Re1 {[%emt 0:00:10]} Re5 {[%emt 0:00:00]} (41... Nf5 $19 {And now ...Nd6 would win.} 42. Bxf5 Rdxf5) 42. Rxf7+ {[%emt 0:01:31][%mdl 64]} Kxf7 {[%emt 0:00:00]} 43. Rxe5 {[%emt 0:00:04]} Rf1+ {[%emt 0:00:00]} 44. Nc1 {[%emt 0:01:06]} Nf5 {[%emt 0:00:00] Inhibits Re3. aiming for ...Kf6.} 45. Re4 {[%emt 0:01:48]} (45. b3 $17) 45... Nd5 $1 $19 {[%emt 0:00:00]} 46. c4 {[%emt 0:02:01]} Nb4 {[%emt 0:00:00]} (46... Nf4 $19 47. Bxf5 exf5) 47. c5 $1 $15 {[%emt 0:00:41]} a5 {[%emt 0:00:00]} 48. Rc4 {[%emt 0:01:19]} Nc6 {[%emt 0:00:00]} (48... Ke7 $17 {Threatens to win with ...Kd7.} 49. c6 Kd8 50. c7+ Kc8) 49. Rc3 $11 {[%emt 0:00:28]} Nfd4 {[%emt 0:00:00] Strongly threatening ...Ne2.} 50. Bg4 {[%emt 0:00:31] Inhibits Ne2.} Ne5 {[%emt 0:00:00]} 51. Bh5+ {[%emt 0:00:03]} Ke7 {[%emt 0:00:00]} 52. Rxg3 {[%emt 0:00:04]} Rh1 {[%emt 0:00:00]} 53. Rh3 {[%emt 0:00:16]} Rg1 {[%emt 0:00:00]} 54. Rg3 {[%emt 0:00:35]} a4 {[%emt 0:00:00][%mdl 1024] White must now prevent ...Nb3. Black has compensation.} 55. Rc3 {[%emt 0:01:22] Inhibits Nb3.} Kd7 {[%emt 0:00:00]} 56. Ka2 $1 {[%emt 0:00:49]} Rh1 {[%emt 0:00:00][%cal Od4b5]} 57. Bf3 {[%emt 0:01:03]} Kc7 {[%emt 0:00:00]} 58. c6 {[%emt 0:00:36]} (58. Nd3 {simplifies} Ndxf3 59. gxf3 Nxd3 60. Rxd3 Kc6 61. Rd6+) 58... Rf1 {[%emt 0:00:00]} 59. Be4 {[%emt 0:00:24]} Re1 {[%emt 0:00:00]} 60. Bf3 {[%emt 0:00:31]} Rf1 {[%emt 0:00:00]} 61. Be4 {[%emt 0:00:08]} Rd1 {[%emt 0:00:00]} 62. Nd3 $2 {[%emt 0:00:48] [#]} (62. Bf3 $11 Rf1) 62... Nb3 $1 {[%emt 0:00:00] Pair of Knights!} 63. Ka3 $14 {[%emt 0:00:37]} (63. Nxe5 $2 Ra1#) 63... Ra1+ {[%emt 0:00:00]} 64. Kb4 {[%emt 0:00:02]} Nf7 {[%emt 0:00:00]} 65. Nf4 {[%emt 0:00:20]} Nd8 {[%emt 0:00:00]} 66. Rd3 {[%emt 0:01:45]} Re1 $2 {[%emt 0:00:00][%mdl 8192]} (66... Nxc6+ $14 67. Bxc6 Kxc6) 67. Rd7+ $18 {[%emt 0:00:00]} (67. Kxa4 $2 Rxe4+ 68. Kxb3 Rxf4 69. Rd7+ Kc8 $19) 67... Kc8 {[%emt 0:00:00]} 68. Bf3 {[%emt 0:00:00]} (68. Kxa4 $2 Rxe4+ 69. Kxb3 Rxf4 $19) 68... Rc1 {[%emt 0:00:00]} 69. Kb5 {[%emt 0:00:52] Ng6 is the strong threat.} (69. Kxa4 Nc5+ 70. Kb5 Nxd7 71. cxd7+ Kxd7 $17) 69... e5 {[%emt 0:00:00] [#]} 70. Kb6 $1 {[%emt 0:00:30][%cal Od7a7] Hoping for Ra7!} Na5 {[%emt 0:00:00]} (70... e4 71. Rc7+) 71. Ng6 {[%emt 0:00:36]} ({Less strong is} 71. Kxa5 Nxc6+ 72. Bxc6 (72. Kxa4 Kxd7 73. Nd3 Ra1+ 74. Kb5 Nd4+ 75. Kc4 Kd6 $17) 72... Rxc6 $16) 71... Ndxc6 {[%emt 0:00:00]} 72. Rg7 {[%emt 0:00:25] Bg4+ would kill now.} Rc4 {[%emt 0:03:15] Inhibits Bg4+.} 73. Rc7+ {[%emt 0:00:33]} Kb8 $2 {[%emt 0:02:08]} (73... Kd8 74. Bxc6 Nxc6 75. Rxc6 Rb4+ 76. Kc5 Rxb2) 74. Bxc6 {[%emt 0:00:13][%cal Og6e5] Threatening mate with Nxe5!} Rc2 {[%emt 0:00:01] [#]} 75. Nxe5 $2 {[%emt 0:00:45]} (75. Rg7 $1 $18 {[%cal Rg7g8]} Nc4+ 76. Kb5 Nd6+ 77. Kxa4 Rxc6 78. Nxe5) 75... Rxb2+ $11 {[%emt 0:00:19] The position is equal.} 76. Bb5 {[%emt 0:00:34]} Rxb5+ $1 {[%emt 0:00:19][%mdl 64]} 77. Kxb5 {[%emt 0:00:01] Intending Kb6 and mate.} Kxc7 {[%emt 0:00:08]} 78. Kxa4 {[%emt 0:00:20] What a bad dream for Black.   Weighted Error Value: White=0.16 (very precise) /Black=0.15 (very precise)} (78. Kxa5 $2 {loses.} a3 79. Kb5 a2 $19) 1/2-1/2

[Event "US Masters 2022"]
[Site "Charlotte"]
[Date "2022.11.27"]
[Round "7.21"]
[White "Wang, Jason"]
[Black "Chandra, Akshat"]
[Result "0-1"]
[ECO "E11"]
[WhiteElo "2345"]
[BlackElo "2472"]
[Annotator "TA"]
[PlyCount "92"]
[EventDate "2022.11.23"]
[EventType "swiss"]
[EventCountry "USA"]
[SourceTitle "playchess.com"]
[Source "ChessBase"]
[SourceQuality "1"]
[TimeControl "5400+30"]

{[%evp 9,92,25,26,22,45,42,36,18,21,12,12,20,42,7,8,23,1,3,35,36,44,34,39,33,35,41,12,19,24,0,0,0,0,0,0,0,0,0,0,-72,-75,-95,-99,-86,-87,-97,-86,-118,-128,-154,-137,-188,-178,-243,-172,-229,-200,-197,-197,-197,-197,-190,-179,-179,-191,-188,-181,-216,-187,-271,-271,-324,-285,-375,-310,-370,-362,-357,-334,-752,-750,-707,-669,-602,-562]} 1. d4 {[%emt 0:00:23]} Nf6 {[%emt 0:07:26]} 2. c4 {[%emt 0:00:07]} e6 {[%emt 0:00:34]} 3. Nf3 {[%emt 0:00:05]} Bb4+ {[%emt 0:00:10]} 4. Nbd2 {[%emt 0:00:16]} d6 {[%emt 0:02:06]} 5. g3 {[%emt 0:00:31]} a5 {[%emt 0:02:06]} 6. Bg2 {[%emt 0:00:33] E11: Bogo-Indian.} Nc6 {[%emt 0:00:17]} 7. O-O {[%emt 0:00:05]} e5 {[%emt 0:00:24]} 8. Nb1 {[%emt 0:01:38] White is slightly better.} exd4 {[%emt 0:03:58]} 9. Nxd4 {[%emt 0:00:10]} Nxd4 {[%emt 0:02:47]} 10. Qxd4 {[%emt 0:00:02]} O-O {[%emt 0:04:04]} 11. Nc3 {[%emt 0:04:39]} h6 {[%emt 0:01:03]} 12. b3 {[%emt 0:05:53]} Re8 {[%emt 0:02:40]} 13. e3 {[%emt 0:11:16] [#]} Bf5 $146 {[%emt 0:03:46]} (13... Bxc3 $5 14. Qxc3 Ne4 $11) ({Predecessor:} 13... Bc5 14. Qd3 Rb8 15. Bb2 Bd7 16. h3 Qc8 17. Kh2 Bc6 18. Nd5 Nxd5 19. cxd5 Bd7 {1-0 (36) Birnboim,N (2365)-Rooze,J (2261) Rhodes 2019}) 14. Bb2 {[%emt 0:10:28]} c6 {[%emt 0:08:34] Against Nd5} 15. Na4 {[%emt 0:01:29]} Qe7 {[%emt 0:02:41]} 16. a3 {[%emt 0:04:55]} Bc5 {[%emt 0:00:10]} 17. Nxc5 {[%emt 0:00:11]} dxc5 {[%emt 0:00:04]} 18. Qc3 {[%emt 0:00:52]} a4 {[%emt 0:10:37]} 19. b4 {[%emt 0:00:54]} cxb4 {[%emt 0:00:05]} 20. axb4 {[%emt 0:00:19]} Red8 {[%emt 0:00:13]} 21. e4 {[%emt 0:03:51]} Be6 {[%emt 0:01:02]} (21... Nxe4 $2 22. Qxg7#) (21... Bxe4 $2 22. Rfe1 $18) 22. Rfd1 {[%emt 0:14:31]} Rxd1+ {[%emt 0:02:12]} 23. Rxd1 {[%emt 0:00:03]} Rd8 {[%emt 0:00:04]} 24. Ra1 {[%emt 0:05:33] [#]} (24. Rxd8+ $11 Qxd8 25. Bf3) 24... b5 $1 $17 {[%emt 0:00:55] Black keeps a firm grip on the game.} 25. e5 {[%emt 0:11:04][%csl LRc6,LRf6]} Ne8 {[%emt 0:00:42][%cal Bf6e8,Be8c7,Bc7e6,Be6g5][%mdl 32]} 26. Bf1 {[%emt 0:05:33]} Nc7 {[%emt 0:02:34]} 27. cxb5 {[%emt 0:02:25]} cxb5 {[%emt 0:01:15]} 28. Ba3 {[%emt 0:00:04]} Bb3 {[%emt 0:17:29] Black is more active.} 29. Rc1 {[%emt 0:01:35] [#]} Ne6 {[%emt 0:00:04]} (29... Nd5 30. Qc6 $11) 30. Re1 {[%emt 0:09:33]} (30. Bxb5 $17 {was necessary.} Nd4 31. Bf1) 30... Qb7 $19 {[%emt 0:03:35][%cal Ob3c4]} 31. Bb2 {[%emt 0:01:55]} (31. h4 $142) 31... Rc8 {[%emt 0:06:41]} 32. Qe3 {[%emt 0:00:45]} (32. Bg2 {might work better.} Rxc3 33. Bxb7) 32... Ng5 {[%emt 0:01:25] aiming for ...Nf3+.} 33. Bg2 {[%emt 0:00:34] Against Nf3+} Bd5 {[%emt 0:00:09]} 34. h4 {[%emt 0:00:04] Threatens to win with Bxd5.} Bxg2 {[%emt 0:04:37]} 35. hxg5 {[%emt 0:00:05]} Bh1 $40 {[%emt 0:00:13][%csl Gh1][%cal Rb7g2,Bg2h1,Bh1f3,Bf3d5][%mdl 160] Black wants a kill.} 36. f3 {[%emt 0:00:25]} Qxf3 {[%emt 0:00:04]} ({Not} 36... Bxf3 37. e6 hxg5 38. Bxg7 $11 (38. e7 Re8 $11)) 37. Qxf3 {[%emt 0:06:14]} Bxf3 {[%emt 0:00:04][%mdl 4096] Endgame KRB-KRB} 38. Rc1 {[%emt 0:00:00]} Rd8 {[%emt 0:00:32]} 39. gxh6 {[%emt 0:00:00]} (39. e6 $142) 39... gxh6 {[%emt 0:00:13]} 40. Bc3 {[%emt 0:00:00]} Rd3 {[%emt 0:00:22] Hoping for ...a3.} 41. Kf2 {[%emt 0:00:00]} Bd5 {[%emt 0:01:04] Strongly threatening ...a3.} 42. e6 {[%emt 0:00:26]} Bxe6 {[%emt 0:00:29]} (42... fxe6 $2 {is the wrong capture.} 43. Be5 $19) 43. Be5 {[%emt 0:00:53]} Rb3 {[%emt 0:00:10]} 44. Bc3 $2 {[%emt 0:00:04]} (44. Ra1) 44... a3 {[%emt 0:00:17][%cal Ba4a3,Ba3a2][%mdl 32] Black is clearly winning.} 45. Ke2 {[%emt 0:00:28]} a2 {[%emt 0:00:09][%cal Ob3c3] ( -> ...Rxc3!)} 46. Kd2 {[%emt 0:00:06]} Rb1 {[%emt 0:00:07] Weighted Error Value: White=0.29 (precise) /Black=0.09 (flawless)} 0-1

[Event "US Masters 2022"]
[Site "Charlotte"]
[Date "2022.11.27"]
[Round "7.22"]
[White "Escalante Ramirez, Brian Sebasti"]
[Black "Chen, Ryo"]
[Result "1-0"]
[ECO "B53"]
[WhiteElo "2468"]
[BlackElo "2269"]
[Annotator "TA"]
[PlyCount "75"]
[EventDate "2022.11.23"]
[EventType "swiss"]
[EventCountry "USA"]
[SourceTitle "playchess.com"]
[Source "ChessBase"]
[SourceQuality "1"]
[TimeControl "5400+30"]

{[%evp 9,75,10,21,6,12,13,7,10,0,6,31,22,25,23,20,25,10,-2,180,175,172,169,191,188,181,188,197,189,192,179,234,237,246,226,235,237,216,233,238,222,201,185,201,173,218,202,272,287,302,291,291,287,474,348,461,460,573,570,550,528,768,751,29969,29972,29970,29972,5285,619]} 1. e4 {[%emt 0:07:53]} c5 {[%emt 0:00:06]} 2. Nf3 {[%emt 0:00:14]} d6 {[%emt 0:00:07]} 3. Nc3 {[%emt 0:00:07]} Nf6 {[%emt 0:00:15]} 4. d4 {[%emt 0:00:04]} cxd4 {[%emt 0:00:11]} 5. Qxd4 {[%emt 0:00:03]} Nc6 {[%emt 0:00:15]} 6. Qd3 {[%emt 0:00:03] B53: Sicilian: 2...d6: Lines with Qxd4.} g6 {[%emt 0:02:20]} 7. Nd5 $1 {[%emt 0:00:15][%mdl 4] now scores much better than the old 7.Be2.} Bg7 {[%emt 0:01:35]} 8. c3 {[%emt 0:00:02] The position is equal.} (8. Nxf6+ {simplifies} Bxf6 9. c3 O-O 10. Be2) 8... O-O {[%emt 0:10:50]} 9. Be2 {[%emt 0:00:03]} Bg4 {[%emt 0:07:27]} 10. O-O {[%emt 0:00:02]} Nd7 {[%emt 0:16:56]} 11. Bg5 {[%emt 0:01:26]} h6 {[%emt 0:06:03]} 12. Bh4 {[%emt 0:00:03] [#]} Nc5 $146 {[%emt 0:05:42]} ({Predecessor:} 12... g5 13. Bg3 Nc5 14. Qc2 Bh5 15. b4 Nd7 16. b5 Na5 17. Rfd1 Bxf3 18. Bxf3 Rc8 {0-1 (44) Hjorth,J (1936)-Sapundjiev,G (2302) ICCF email 2017}) 13. Qc2 {[%emt 0:02:32]} Rc8 $2 {[%emt 0:09:17] [#] Black cannot hold the game after this.} (13... g5 $11 {and Black is okay.} 14. Bg3 f5 15. exf5 Bxf5) 14. Nd4 $1 $18 {[%emt 0:11:49]} Bxe2 {[%emt 0:04:50]} 15. Nxc6 {[%emt 0:00:27][%mdl 64] Remove Defender} bxc6 {[%emt 0:00:43]} 16. Nxe7+ {[%emt 0:01:17][%cal Bd5e7,Be7c8,Bc8a7][%mdl 32]} (16. Qxe2 $2 cxd5 17. exd5 Qb6 $19) 16... Kh7 {[%emt 0:00:22]} 17. Qxe2 {[%emt 0:00:57][%cal Oe7g6] And now Nxg6! would win.} g5 {[%emt 0:00:24]} 18. Nxc8 {[%emt 0:05:48]} gxh4 {[%emt 0:00:10]} 19. Nxa7 {[%emt 0:12:00]} Qb6 {[%emt 0:01:41] [#]} (19... Qc7 $142) 20. Qe3 $1 {[%emt 0:01:47][%cal Ob2b4] Hoping for b4!} Qb7 {[%emt 0:02:03] [#] Prevents b4.} (20... Qxa7 $2 21. b4 $18) 21. Rad1 $1 {[%emt 0:09:22][%cal Ba1d1,Bd1d6,Bd6c6,Bc6c7,Bc7f7,Bf7b7][%mdl 32]} Ra8 {[%emt 0:00:47]} 22. Rxd6 {[%emt 0:03:21]} (22. b4 Ne6 23. e5 Qxa7) 22... Qxa7 {[%emt 0:00:20]} 23. Rxc6 {[%emt 0:00:14]} Na4 {[%emt 0:00:35]} 24. Qf4 {[%emt 0:10:09]} Nxb2 {[%emt 0:12:47]} 25. Rc7 {[%emt 0:00:10]} ({Not} 25. Qxh4 Qd7 26. Rc5 Na4 $14) 25... Qxa2 {[%emt 0:00:19]} 26. Rxf7 $40 {[%emt 0:00:09][%mdl 128] Black is in trouble.} ({Don't play} 26. Qxf7 Qxf7 27. Rxf7 Na4 $16) 26... Qe6 {[%emt 0:01:08]} 27. Rb7 {[%emt 0:00:25]} Nd3 {[%emt 0:01:30]} 28. Qxh4 {[%emt 0:01:26] Threatens to win with Qg3.} Nc5 {[%emt 0:00:59]} 29. Re7 {[%emt 0:03:18]} Qg6 {[%emt 0:01:46]} 30. Qf4 {[%emt 0:00:03]} Na4 $2 {[%emt 0:06:51]} (30... Kh8 31. Qc7 Nd3) 31. Qc7 {[%emt 0:05:42] Ra1 is the strong threat.} Rg8 {[%emt 0:03:28]} 32. Ra1 {[%emt 0:08:19]} Nb2 {[%emt 0:02:37]} 33. g3 {[%emt 0:07:34]} Kh8 {[%emt 0:00:23]} 34. Rb1 {[%emt 0:05:19]} Na4 {[%emt 0:00:05]} 35. Rb8 {[%emt 0:00:27]} Nxc3 {[%emt 0:00:22]} 36. Rxg8+ {[%emt 0:00:40]} Kxg8 {[%emt 0:00:08]} 37. Qc8+ {[%emt 0:00:32]} Bf8 {[%emt 0:00:06]} 38. Re8 {[%emt 0:00:19] Weighted Error Value: White=0.08 (flawless) /Black=0.51} (38. Qc4+ $142 Kh8 39. Qxc3+ Bg7 40. e5 Qb1+ 41. Kg2) 1-0